bitfinex-derivatives/quotes_BTCF0:USTF0_20250211
["timestamp","ask_amount","ask_price","bid_price","bid_amount"]
[1739312903809,1.2331398,96307.0,96306.0,0.00010436]
[1739312904111,1.2271398,96307.0,96306.0,0.00010436]
[1739312904311,1.2331398,96307.0,96306.0,0.00010436]
[1739312905216,1.2271398,96307.0,96306.0,0.00010436]
[1739312905404,1.2331398,96307.0,96306.0,0.00010436]
[1739312906206,1.2341398,96307.0,96306.0,0.00010436]
[1739312906901,1.2361398,96307.0,96306.0,0.00010436]
[1739312908311,0.5145398,96307.0,96306.0,0.00010436]
[1739312908614,0.8753398,96307.0,96306.0,0.00010436]
[1739312911311,0.8693398,96307.0,96306.0,0.00010436]
[1739312911505,0.8753398,96307.0,96306.0,0.00010436]
[1739312911704,0.5145398,96307.0,96306.0,0.00010436]
[1739312911905,0.8753398,96307.0,96306.0,0.00010436]
[1739312913509,0.8055798,96307.0,96306.0,0.00010436]
[1739312916214,0.3768,96307.0,96306.0,0.00010436]
[1739312916415,0.5844798,96307.0,96306.0,0.00010436]
[1739312918316,0.5844798,96307.0,96306.0,0.06982436]
[1739312918610,0.2226798,96307.0,96306.0,0.06982436]
[1739312919310,0.2216798,96307.0,96306.0,0.06982436]
[1739312920108,0.2226798,96307.0,96306.0,0.06982436]
[1739312920811,0.2216798,96307.0,96306.0,0.06982436]
[1739312921217,0.2166798,96307.0,96306.0,0.06982436]
[1739312921518,0.2226798,96307.0,96306.0,0.06982436]
[1739312921716,0.2236798,96307.0,96306.0,0.06982436]
[1739312922816,0.2216798,96307.0,96306.0,0.06982436]
[1739312923418,0.2226798,96307.0,96306.0,0.06982436]
[1739312923909,0.2166798,96307.0,96306.0,0.06982436]
[1739312924114,0.2216798,96307.0,96306.0,0.06982436]
[1739312924513,0.2226798,96307.0,96306.0,0.06982436]
[1739312924907,0.2236798,96307.0,96306.0,0.06982436]
[1739312925919,0.2226798,96307.0,96306.0,0.06982436]
[1739312926711,0.2216798,96307.0,96306.0,0.06982436]
[1739312927617,0.2226798,96307.0,96306.0,0.06982436]
[1739312928321,0.2216798,96307.0,96306.0,0.06982436]
[1739312930809,0.2126798,96307.0,96306.0,0.06982436]
[1739312931013,0.2216798,96307.0,96306.0,0.06982436]
[1739312931621,0.2126798,96307.0,96306.0,0.06982436]
[1739312931924,0.2216798,96307.0,96306.0,0.06982436]
[1739312933829,0.2216798,96307.0,96306.0,0.06978436]
[1739312937131,0.2216798,96307.0,96306.0,0.00010436]
[1739312937325,0.2216798,96307.0,96306.0,0.06978436]
[1739312939418,0.2216798,96307.0,96306.0,0.00010436]
[1739312939622,0.2216798,96307.0,96306.0,0.06978436]
[1739312940424,0.2216798,96307.0,96306.0,0.00010436]
[1739312940625,0.2166798,96307.0,96306.0,0.06978436]
[1739312940830,0.2216798,96307.0,96306.0,0.06978436]
[1739312941432,0.2126798,96307.0,96306.0,0.06978436]
[1739312941632,0.2216798,96307.0,96306.0,0.06978436]
[1739312943539,0.2166798,96307.0,96306.0,0.06978436]
[1739312943727,0.2216798,96307.0,96306.0,0.06978436]
[1739312945635,0.2216798,96307.0,96306.0,0.00010436]
[1739312945825,0.2216798,96307.0,96306.0,0.06978436]
[1739312946738,0.2216798,96307.0,96306.0,0.06974436]
[1739312947338,0.2166798,96307.0,96306.0,0.06974436]
[1739312947539,0.2216798,96307.0,96306.0,0.06974436]
[1739312947737,0.2126798,96307.0,96306.0,0.06974436]
[1739312947926,0.2216798,96307.0,96306.0,0.06974436]
[1739312950141,0.2166798,96307.0,96306.0,0.06974436]
[1739312950341,0.2216798,96307.0,96306.0,0.06974436]
[1739312950737,0.2216798,96307.0,96306.0,0.00010436]
[1739312950936,0.2216798,96307.0,96306.0,0.06974436]
[1739312952538,0.2166798,96307.0,96306.0,0.06974436]
[1739312952737,0.2216798,96307.0,96306.0,0.06974436]
[1739312954143,0.2166798,96307.0,96306.0,0.06974436]
[1739312954346,0.2216798,96307.0,96306.0,0.06974436]
[1739312954941,0.2126798,96307.0,96306.0,0.06974436]
[1739312955243,0.2216798,96307.0,96306.0,0.06974436]
[1739312955636,0.2166798,96307.0,96306.0,0.06974436]
[1739312955845,0.2216798,96307.0,96306.0,0.06974436]
[1739312957341,0.2126798,96307.0,96306.0,0.06974436]
[1739312957535,0.2216798,96307.0,96306.0,0.06974436]
[1739312960338,0.2166798,96307.0,96306.0,0.06974436]
[1739312960544,0.2216798,96307.0,96306.0,0.06974436]
[1739312961143,0.2126798,96307.0,96306.0,0.06974436]
[1739312961343,0.2216798,96307.0,96306.0,0.06974436]
[1739312962646,0.2166798,96307.0,96306.0,0.06974436]
[1739312962941,0.2216798,96307.0,96306.0,0.06974436]
[1739312964443,0.2126798,96307.0,96306.0,0.06974436]
[1739312964643,0.2216798,96307.0,96306.0,0.06974436]
[1739312965244,0.2126798,96307.0,96306.0,0.06974436]
[1739312965445,0.2216798,96307.0,96306.0,0.06974436]
[1739312966751,0.2076798,96307.0,96306.0,0.06974436]
[1739312967051,0.2216798,96307.0,96306.0,0.06974436]
[1739312968455,0.2136798,96307.0,96306.0,0.06974436]
[1739312969455,0.2096798,96307.0,96306.0,0.06974436]
[1739312969955,0.2186798,96307.0,96306.0,0.06974436]
[1739312970955,0.2166798,96307.0,96306.0,0.06974436]
[1739312971145,0.2146798,96307.0,96306.0,0.06974436]
[1739312972757,0.2106798,96307.0,96306.0,0.06974436]
[1739312972955,0.2106798,96307.0,96306.0,0.00010436]
[1739312973249,0.2086798,96307.0,96306.0,0.06970436]
[1739312973455,0.2146798,96307.0,96306.0,0.06970436]
[1739312973854,0.2106798,96307.0,96306.0,0.06970436]
[1739312974158,0.2096798,96307.0,96306.0,0.06970436]
[1739312974348,0.2086798,96307.0,96306.0,0.06970436]
[1739312974551,0.2106798,96307.0,96306.0,0.06970436]
[1739312976956,0.2086798,96307.0,96306.0,0.06970436]
[1739312977157,0.2106798,96307.0,96306.0,0.06970436]
[1739312977557,0.2086798,96307.0,96306.0,0.06970436]
[1739312977756,0.2106798,96307.0,96306.0,0.06970436]
[1739312979161,0.2086798,96307.0,96306.0,0.06970436]
[1739312979351,0.2106798,96307.0,96306.0,0.06970436]
[1739312979758,0.2086798,96307.0,96306.0,0.06970436]
[1739312979961,0.2106798,96307.0,96306.0,0.06970436]
[1739312981959,0.2106798,96307.0,96306.0,0.00010436]
[1739312982159,0.2106798,96307.0,96306.0,0.06966436]
[1739312983559,0.2116798,96307.0,96306.0,0.06966436]
[1739312983958,0.2126798,96307.0,96306.0,0.06966436]
[1739312988251,0.2096798,96307.0,96306.0,0.06966436]
[1739312988459,0.2126798,96307.0,96306.0,0.06966436]
[1739312988851,0.2116798,96307.0,96306.0,0.06966436]
[1739312989657,0.2126798,96307.0,96306.0,0.06966436]
[1739312992561,0.2106798,96307.0,96306.0,0.06966436]
[1739312992762,0.2126798,96307.0,96306.0,0.06966436]
[1739312994768,0.2106798,96307.0,96306.0,0.06966436]
[1739312994968,0.2136798,96307.0,96306.0,0.06966436]
[1739312996361,0.2106798,96307.0,96306.0,0.06966436]
[1739312996562,0.2136798,96307.0,96306.0,0.06966436]
[1739312997962,0.2106798,96307.0,96306.0,0.06966436]
[1739312998160,0.2136798,96307.0,96306.0,0.06966436]
[1739313001264,0.2156798,96307.0,96306.0,0.06966436]
[1739313001465,0.2196798,96307.0,96306.0,0.06966436]
[1739313001867,0.2186798,96307.0,96306.0,0.06966436]
[1739313002265,0.2116798,96307.0,96306.0,0.06966436]
[1739313002470,0.2186798,96307.0,96306.0,0.06966436]
[1739313003179,0.2196798,96307.0,96306.0,0.00010436]
[1739313004083,0.2076927,96301.0,96300.0,6e-08]
[1739313004385,0.5684927,96301.0,96300.0,6e-08]
[1739313005083,0.5684927,96301.0,96287.0,0.18677934]
[1739313005084,0.3608,96301.0,96287.0,0.18677934]
[1739313005280,0.5685207,96288.0,96287.0,0.18677934]
[1739313005873,0.5685207,96288.0,96264.0,0.00155806]
[1739313005874,0.2077337,96282.0,96264.0,0.00155806]
[1739313006070,0.5685337,96282.0,96264.0,0.00155806]
[1739313006269,0.5685337,96282.0,96259.0,0.06952]
[1739313006984,0.5685337,96282.0,96260.0,0.08151651]
[1739313007680,0.5685337,96282.0,96258.0,0.2077846]
[1739313008180,0.5715337,96282.0,96260.0,0.08151651]
[1739313008376,0.6039337,96282.0,96260.0,0.08151651]
[1739313008578,0.6069337,96282.0,96260.0,0.08151651]
[1739313008779,0.2077771,96262.0,96260.0,0.08151651]
[1739313009077,0.2077771,96262.0,96259.0,0.06952]
[1739313009274,0.2077805,96261.0,96259.0,0.06952]
[1739313012478,0.2097805,96261.0,96259.0,0.06952]
[1739313018186,0.002,96261.0,96257.0,0.06952]
[1739313018388,0.2077855,96258.0,96257.0,0.06952]
[1739313020183,0.2097855,96258.0,96257.0,0.06952]
[1739313020785,0.2107855,96258.0,96257.0,0.06952]
[1739313031694,0.2077876,96257.0,96256.0,0.033]
[1739313032689,0.2077912,96256.0,96252.0,0.06948]
[1739313034383,0.2087912,96256.0,96252.0,0.06948]
[1739313035188,0.2107912,96256.0,96252.0,0.06948]
[1739313040392,0.2077953,96254.0,96252.0,0.06948]
[1739313041589,0.2097953,96254.0,96252.0,0.06948]
[1739313043899,0.2107953,96254.0,96252.0,0.06948]
[1739313048205,0.2077963,96253.0,96252.0,0.06948]
[1739313050395,0.2097963,96253.0,96252.0,0.06948]
[1739313051302,0.2107963,96253.0,96252.0,0.06948]
[1739313051706,0.003,96253.0,96252.0,0.06948]
[1739313052003,0.003,96253.0,96251.0,0.06948]
[1739313052396,0.00295783,96253.0,96251.0,0.06948]
[1739313052902,0.21075613,96253.0,96251.0,0.06948]
[1739313053502,0.2107983,96253.0,96251.0,0.06948]
[1739313053702,0.003,96253.0,96251.0,0.06948]
[1739313062503,0.36303405,96252.0,96251.0,0.06948]
[1739313063802,0.36503405,96252.0,96251.0,0.06948]
[1739313064209,0.207807,96248.0,96247.0,0.00155834]
[1739313065509,0.208807,96248.0,96247.0,0.00155834]
[1739313066008,0.209807,96248.0,96247.0,0.00155834]
[1739313067303,0.26034708,96248.0,96247.0,0.00155834]
[1739313068408,0.27080226,96248.0,96247.0,0.00155834]
[1739313071305,0.22026218,96248.0,96247.0,0.00155834]
[1739313073307,0.2078265,96239.0,96238.0,0.0315]
[1739313073605,0.2078265,96239.0,96226.0,0.28182798]
[1739313073606,0.2078308,96237.0,96236.0,0.06944]
[1739313075199,0.2088308,96237.0,96236.0,0.06944]
[1739313075404,0.2098308,96237.0,96236.0,0.06944]
[1739313076309,0.2078395,96233.0,96231.0,0.06944]
[1739313077519,0.2098395,96233.0,96231.0,0.06944]
[1739313078705,0.2098395,96233.0,96232.0,0.06944]
[1739313080612,0.22030421,96233.0,96232.0,0.06944]
[1739313081117,0.01246471,96233.0,96229.0,0.0694]
[1739313081414,0.2078446,96231.0,96229.0,0.0694]
[1739313082711,0.2078446,96231.0,96227.0,0.0326]
[1739313082911,0.2078446,96231.0,96228.0,0.0694]
[1739313083111,0.2078446,96231.0,96227.0,0.0326]
[1739313083316,0.2078446,96231.0,96228.0,0.0694]
[1739313083819,0.2078481,96229.0,96228.0,0.0694]
[1739313085019,0.2078502,96228.0,96227.0,0.0326]
[1739313085409,0.2078502,96228.0,96224.0,0.0694]
[1739313087012,0.2088502,96228.0,96224.0,0.0694]
[1739313087412,0.2098502,96228.0,96224.0,0.0694]
[1739313087920,0.2088502,96228.0,96224.0,0.0694]
[1739313088218,0.2098502,96228.0,96224.0,0.0694]
[1739313088820,0.2078554,96226.0,96221.0,0.0303]
[1739313089011,0.2078554,96226.0,96221.0,0.0997]
[1739313090114,0.2078632,96222.0,96221.0,0.0303]
[1739313091520,0.2088632,96222.0,96221.0,0.0303]
[1739313092923,0.2098632,96222.0,96221.0,0.0303]
[1739313094114,0.2098632,96222.0,96219.0,0.0694]
[1739313095418,0.2088632,96222.0,96219.0,0.0694]
[1739313095618,0.2098632,96222.0,96219.0,0.0694]
[1739313097823,0.002,96222.0,96219.0,0.0694]
[1739313104924,0.002,96222.0,96219.0,0.06936]
[1739313105720,0.002,96222.0,96218.0,0.0303]
[1739313105921,0.002,96222.0,96218.0,0.09966]
[1739313106721,0.001,96222.0,96218.0,0.09966]
[1739313106919,0.002,96222.0,96218.0,0.09966]
[1739313108732,0.002,96222.0,96218.0,0.46046]
[1739313112717,0.002,96222.0,96221.0,0.2078653]
[1739313116033,0.002,96222.0,96221.0,0.2772253]
[1739313120931,0.002,96222.0,96221.0,0.6380253]
[1739313121729,0.002,96222.0,96221.0,0.2772253]
[1739313121934,0.002,96222.0,96221.0,0.6380253]
[1739313131150,0.002,96222.0,96221.0,0.5686653]
[1739313131344,0.002,96222.0,96221.0,0.6379853]
[1739313135548,0.002,96222.0,96221.0,0.2771853]
[1739313135742,0.002,96222.0,96221.0,0.6379853]
[1739313140352,0.002,96222.0,96221.0,0.2771853]
[1739313140554,0.002,96222.0,96221.0,0.6379853]
[1739313140754,0.002,96222.0,96221.0,0.2771853]
[1739313141054,0.002,96222.0,96221.0,0.6379853]
[1739313146459,0.002,96222.0,96221.0,0.2771853]
[1739313146662,0.002,96222.0,96221.0,0.6379853]
[1739313147459,0.002,96222.0,96221.0,0.2771853]
[1739313147659,0.002,96222.0,96221.0,0.82500943]
[1739313147859,0.002,96222.0,96221.0,0.46420943]
[1739313148066,0.002,96222.0,96221.0,0.82500943]
[1739313151870,0.002,96222.0,96221.0,0.6379853]
[1739313152460,0.002,96222.0,96221.0,0.2771853]
[1739313152669,0.002,96222.0,96221.0,0.6379853]
[1739313153571,0.002,96222.0,96221.0,0.2771853]
[1739313153769,0.002,96222.0,96221.0,0.6379853]
[1739313155677,0.002,96222.0,96221.0,0.2771853]
[1739313155874,0.002,96222.0,96221.0,0.6379853]
[1739313160269,0.002,96222.0,96221.0,0.82500943]
[1739313160483,0.003,96222.0,96221.0,0.82500943]
[1739313161684,0.003,96222.0,96221.0,0.46420943]
[1739313161886,0.003,96222.0,96221.0,0.82500943]
[1739313164086,0.003,96222.0,96221.0,0.5686653]
[1739313164279,0.003,96222.0,96221.0,0.6379053]
[1739313165383,0.003,96222.0,96221.0,0.2771053]
[1739313165684,0.003,96222.0,96221.0,0.6379053]
[1739313168688,0.002,96222.0,96221.0,0.6509053]
[1739313169389,0.001,96222.0,96221.0,0.6439053]
[1739313169588,0.002,96222.0,96221.0,0.6569053]
[1739313172889,0.002,96222.0,96221.0,2.1569053]
[1739313175286,0.002,96222.0,96221.0,0.6569053]
[1739313175694,0.002,96222.0,96221.0,0.5876653]
[1739313175886,0.002,96222.0,96221.0,0.6569053]
[1739313190102,0.001,96222.0,96221.0,0.6539053]
[1739313190898,0.001,96222.0,96221.0,0.5846653]
[1739313191102,0.001,96222.0,96221.0,0.6538653]
[1739313191290,0.15552517,96227.0,96221.0,0.433]
[1739313191596,0.001,96222.0,96221.0,0.6508659]
[1739313192299,0.15552517,96227.0,96221.0,0.433]
[1739313192500,0.15652517,96227.0,96226.0,0.2078551]
[1739313194003,0.15652517,96227.0,96226.0,0.2098551]
[1739313194004,0.001,96227.0,96226.0,0.2098551]
[1739313194496,0.001,96227.0,96226.0,0.002]
[1739313194687,0.2078529,96227.0,96226.0,0.0712]
[1739313194894,0.15552517,96231.0,96226.0,0.0712]
[1739313195600,0.001,96227.0,96226.0,0.0772]
[1739313196196,0.2088529,96227.0,96226.0,0.0772]
[1739313196396,0.2088529,96227.0,96226.0,0.0762]
[1739313197196,0.2088529,96227.0,96226.0,0.0702]
[1739313197398,0.2078529,96227.0,96226.0,0.0752]
[1739313197602,0.2078529,96227.0,96226.0,0.0762]
[1739313198099,0.2078529,96227.0,96226.0,0.005]
[1739313199099,0.2088529,96227.0,96226.0,0.006]
[1739313201302,0.2078529,96227.0,96226.0,0.003]
[1739313202008,0.2078529,96227.0,96226.0,0.002]
[1739313202507,0.2088529,96227.0,96226.0,0.002]
[1739313208007,0.5696529,96227.0,96226.0,0.002]
[1739313208411,0.62020394,96227.0,96226.0,0.002]
[1739313217406,0.72465262,96227.0,96226.0,0.002]
[1739313222219,0.65227437,96227.0,96226.0,0.002]
[1739313226018,0.62021026,96227.0,96226.0,0.002]
[1739313237738,0.70962508,96227.0,96226.0,0.002]
[1739313238240,1.07042508,96227.0,96226.0,0.002]
[1739313250050,0.98101026,96227.0,96226.0,0.002]
[1739313251143,1.05013026,96227.0,96226.0,0.002]
[1739313252251,0.2079004,96205.0,96200.0,0.1]
[1739313252453,0.2079004,96205.0,96200.0,0.3079104]
[1739313253447,0.2089004,96205.0,96204.0,0.0441]
[1739313253647,0.2099004,96205.0,96204.0,0.0501]
[1739313257550,0.22025233,96205.0,96204.0,0.0501]
[1739313258255,0.27080969,96205.0,96204.0,0.0501]
[1739313262146,0.45689639,96205.0,96204.0,0.0501]
[1739313265250,0.35735767,96205.0,96204.0,0.0501]
[1739313269050,0.35735767,96205.0,96204.0,0.018]
[1739313270251,0.71815767,96205.0,96204.0,0.018]
[1739313270550,0.78723767,96205.0,96204.0,0.018]
[1739313272159,0.78723767,96205.0,96204.0,0.015]
[1739313272858,0.78623767,96205.0,96204.0,0.006]
[1739313273059,0.70068969,96205.0,96204.0,0.015]
[1739313273361,0.69968969,96205.0,96204.0,0.013]
[1739313273752,0.69868969,96205.0,96204.0,0.006]
[1739313275460,0.69868969,96205.0,96204.0,0.002]
[1739313279859,0.69868969,96205.0,96204.0,1e-07]
[1739313280861,0.0519819,96193.0,96185.0,0.0321]
[1739313281058,0.5687415,96186.0,96185.0,0.0321]
[1739313281960,0.5687415,96186.0,96185.0,0.0441]
[1739313282561,0.5697415,96186.0,96185.0,0.0441]
[1739313282762,0.5707415,96186.0,96185.0,0.0441]
[1739313285269,0.62129886,96186.0,96185.0,0.0441]
[1739313286166,0.63152103,96186.0,96185.0,0.0441]
[1739313292870,0.63152103,96186.0,96185.0,0.012]
[1739313293583,0.2079696,96173.0,96172.0,0.0318]
[1739313293871,0.5687696,96173.0,96172.0,0.0318]
[1739313294766,0.5697696,96173.0,96172.0,0.0398]
[1739313295167,0.5707696,96173.0,96172.0,0.0438]
[1739313299279,0.58138194,96173.0,96172.0,0.0438]
[1739313302167,0.58138194,96173.0,96172.0,0.012]
[1739313302770,0.2079954,96161.0,96160.0,0.03]
[1739313302975,0.2079975,96160.0,96159.0,0.00155976]
[1739313303483,0.2080148,96152.0,96151.0,0.0618]
[1739313303683,0.5688148,96152.0,96151.0,0.0618]
[1739313304081,0.5688148,96152.0,96151.0,0.0315]
[1739313304269,0.5688148,96152.0,96146.0,0.03]
[1739313304270,0.2080322,96144.0,96135.0,0.031]
[1739313304477,0.5688322,96144.0,96136.0,0.0317]
[1739313305679,0.5698322,96144.0,96135.0,0.0305]
[1739313305887,0.5698322,96144.0,96106.0,1.91617619]
[1739313305888,0.3618,96144.0,96109.0,0.10754798]
[1739313306083,0.5689058,96110.0,96109.0,0.10754798]
[1739313307373,0.5699058,96110.0,96109.0,0.10754798]
[1739313308377,0.4414818,96110.0,96101.0,0.30935537]
[1739313308579,0.568923,96102.0,96101.0,0.06135537]
[1739313309385,0.2081403,96094.0,96080.0,0.00156105]
[1739313309687,0.6379803,96094.0,96080.0,0.00156105]
[1739313309882,0.42984,96094.0,96080.0,0.00156105]
[1739313310080,0.5689685,96081.0,96080.0,0.00156105]
[1739313310477,0.3608,96081.0,96067.0,0.0329]
[1739313310683,0.3608,96068.0,96067.0,0.0329]
[1739313311880,0.3608,96068.0,96059.0,0.032]
[1739313311881,0.208214,96060.0,96059.0,0.032]
[1739313312081,0.569014,96060.0,96059.0,0.032]
[1739313312589,0.3608,96060.0,96042.0,0.001]
[1739313312787,0.2082311,96053.0,96043.0,0.0968]
[1739313312983,0.3608,96044.0,96043.0,0.0968]
[1739313313179,0.7216,96044.0,96043.0,0.0968]
[1739313313481,0.9298487,96044.0,96043.0,0.0968]
[1739313314281,0.2082617,96038.0,96024.0,0.00156196]
[1739313314486,0.2082617,96038.0,96029.0,0.0968]
[1739313315297,0.06908,96039.0,96024.0,0.00156196]
[1739313315591,0.7216,96025.0,96024.0,0.00156196]
[1739313317391,0.73814027,96025.0,96024.0,0.00156196]
[1739313318099,0.73914027,96025.0,96024.0,0.00156196]
[1739313318602,0.74114027,96025.0,96024.0,0.00156196]
[1739313319005,0.73614027,96025.0,96024.0,0.00156196]
[1739313319705,0.74114027,96025.0,96024.0,0.00156196]
[1739313320295,0.74014027,96025.0,96024.0,0.00156196]
[1739313320497,0.73914027,96025.0,96024.0,0.00156196]
[1739313320896,0.74014027,96025.0,96024.0,0.00156196]
[1739313321295,0.73714027,96025.0,96024.0,0.00156196]
[1739313321498,0.2083099,96016.0,96014.0,1.5]
[1739313321807,0.3608,96015.0,96014.0,1.5]
[1739313322006,0.3608,96015.0,96011.0,0.0332]
[1739313322309,0.3608,96015.0,96001.0,0.0302]
[1739313322310,0.2083397,96002.0,96001.0,0.0302]
[1739313322508,0.5691397,96002.0,96001.0,0.0302]
[1739313323900,0.5691397,96002.0,96000.0,0.1]
[1739313324306,0.5701397,96002.0,96000.0,0.1]
[1739313326706,0.06912,96001.0,96000.0,0.1]
[1739313327802,0.06912,96001.0,96000.0,0.0869147]
[1739313328008,0.06912,96001.0,96000.0,0.08138712]
[1739313328207,0.06912,96001.0,95979.0,0.00156269]
[1739313328510,0.2300208,95980.0,95961.0,0.3608]
[1739313328702,0.3608,95970.0,95945.0,0.062]
[1739313328901,0.48572811,95970.0,95945.0,0.062]
[1739313329204,0.208434,95959.0,95945.0,0.062]
[1739313329410,0.3608,95946.0,95922.0,0.00826052]
[1739313329604,0.3608,95934.0,95932.0,0.0928]
[1739313330503,0.3608,95934.0,95905.0,0.07016]
[1739313330711,0.3608,95913.0,95910.0,0.0618]
[1739313331004,0.3608,95913.0,95900.0,0.1]
[1739313331005,0.2085502,95906.0,95900.0,0.1]
[1739313331208,0.3608,95901.0,95900.0,0.1]
[1739313331404,0.642439,95901.0,95900.0,0.1]
[1739313331599,0.642439,95901.0,95900.0,0.03677818]
[1739313331899,0.2086267,95870.0,95861.0,0.3608]
[1739313332106,0.3608,95869.0,95861.0,0.3608]
[1739313332712,0.9824048,95862.0,95784.0,0.3506]
[1739313333008,0.2087222,95826.0,95825.0,0.34369732]
[1739313333207,0.3608,95826.0,95825.0,0.34369732]
[1739313333404,0.3608,95826.0,95821.0,0.0316]
[1739313333614,0.3608,95822.0,95821.0,0.0316]
[1739313333809,0.3608,95822.0,95821.0,0.0016]
[1739313334008,0.3608,95822.0,95817.0,0.43010222]
[1739313334605,0.3608,95822.0,95817.0,0.41610222]
[1739313334804,0.19007258,95822.0,95817.0,0.41610222]
[1739313336012,0.26623258,95822.0,95817.0,0.41610222]
[1739313336218,0.26623258,95822.0,95809.0,0.05979954]
[1739313336405,0.3608,95810.0,95809.0,0.05979954]
[1739313337007,0.3608,95811.0,95809.0,0.35979954]
[1739313337209,0.36136001,95828.0,95827.0,0.20872]
[1739313337513,0.3608,95828.0,95827.0,0.20872]
[1739313338616,0.0001565,95835.0,95819.0,0.3608]
[1739313338811,0.0001565,95835.0,95834.0,0.2087048]
[1739313339012,0.3608,95861.0,95849.0,0.2086705]
[1739313339315,0.36132001,95861.0,95852.0,0.2086656]
[1739313339910,0.00052001,95861.0,95860.0,0.2086481]
[1739313340112,0.15344504,95867.0,95852.0,0.07896]
[1739313340412,0.15344504,95867.0,95865.0,0.2086365]
[1739313340616,0.15344504,95867.0,95866.0,0.0786]
[1739313340812,0.0001565,95869.0,95866.0,0.4394]
[1739313341010,0.18604074,95877.0,95876.0,0.2086133]
[1739313341520,0.00856179,95885.0,95884.0,0.2085959]
[1739313341814,0.3608,95918.0,95884.0,0.43948]
[1739313342014,0.00056001,95918.0,95907.0,0.2085455]
[1739313342211,0.0088395,95927.0,95908.0,0.18835327]
[1739313342417,0.00052001,95928.0,95926.0,0.2085046]
[1739313342609,0.00156497,95934.0,95923.0,0.07888]
[1739313342813,0.00156497,95934.0,95933.0,0.2084894]
[1739313343424,8e-08,95937.0,95936.0,0.2084828]
[1739313343615,8e-08,95937.0,95932.0,0.35007617]
[1739313344013,8e-08,95937.0,95936.0,0.2084828]
[1739313344212,8e-08,95937.0,95936.0,0.5692828]
[1739313344514,0.3608,95956.0,95955.0,0.2084416]
[1739313344719,0.2083636,95991.0,95959.0,0.2084329]
[1739313344720,0.00052001,95986.0,95959.0,0.2084329]
[1739313344917,0.00827178,95969.0,95959.0,0.5692329]
[1739313345113,0.3608,95987.0,95959.0,0.6608]
[1739313345318,0.3608,95987.0,95969.0,0.5692111]
[1739313345513,0.00156415,95979.0,95969.0,0.22059401]
[1739313345719,0.00156415,95979.0,95972.0,0.2084039]
[1739313345920,0.00172047,95979.0,95972.0,0.2084039]
[1739313346115,0.3608,95978.0,95969.0,0.40894728]
[1739313346517,0.3608,95978.0,95976.0,0.2083951]
[1739313346920,0.00172047,95979.0,95977.0,0.3608]
[1739313347222,0.00172047,95979.0,95978.0,0.2083916]
[1739313348217,0.3608,95987.0,95986.0,0.2083742]
[1739313348418,0.3608,95987.0,95986.0,0.13060286]
[1739313348734,0.3608,95987.0,95986.0,0.07864]
[1739313348922,0.3608,95987.0,95986.0,0.2083742]
[1739313349117,0.3608,95999.0,95993.0,0.2083572]
[1739313349317,0.3608,95999.0,95998.0,0.2083482]
[1739313349726,0.3608,95999.0,95998.0,0.2869082]
[1739313350225,0.00867749,96008.0,95998.0,0.2869082]
[1739313351128,0.00867749,96008.0,95998.0,0.47526147]
[1739313351825,0.00867749,96008.0,95998.0,0.26691327]
[1739313352031,0.00015632,96008.0,96005.0,0.2083324]
[1739313352625,0.00015632,96008.0,96007.0,0.2083287]
[1739313353316,0.00015632,96008.0,96007.0,0.2866087]
[1739313353522,0.3608,96034.0,96007.0,0.07828]
[1739313353824,0.3608,96024.0,96020.0,0.39665177]
[1739313354029,0.3608,96024.0,96021.0,0.07868]
[1739313355022,0.3608,96024.0,96021.0,0.2869767]
[1739313356517,0.3608,96024.0,96023.0,0.2082939]
[1739313356927,0.3608,96024.0,96023.0,0.5082939]
[1739313357123,0.00015624,96032.0,96031.0,0.2082766]
[1739313357924,0.36132001,96034.0,96033.0,0.2082723]
[1739313358227,0.2082378,96049.0,96033.0,0.2082723]
[1739313358228,0.3608,96050.0,96042.0,0.2082526]
[1739313358428,0.36897614,96050.0,96042.0,0.2082526]
[1739313358930,0.36897614,96050.0,96047.0,0.2082406]
[1739313359127,0.36897614,96050.0,96049.0,0.2082376]
[1739313359528,0.00817614,96050.0,96049.0,0.2082376]
[1739313359730,0.00010156,96056.0,96048.0,0.079]
[1739313360325,0.00010156,96056.0,96048.0,0.07832]
[1739313361035,0.00851926,96056.0,96054.0,0.2082264]
[1739313361225,0.00010156,96056.0,96054.0,0.2082264]
[1739313362932,0.00010156,96056.0,96054.0,0.14619926]
[1739313363530,0.00010156,96056.0,96055.0,0.07796]
[1739313364129,0.00846242,96056.0,96043.0,0.3608]
[1739313364334,0.2083092,96016.0,96015.0,0.3608]
[1739313364524,0.3608,96016.0,95995.0,0.2083538]
[1739313364719,0.2083439,96000.0,95994.0,0.3608]
[1739313364925,0.2083439,96000.0,95995.0,0.0782]
[1739313365124,0.2083439,96000.0,95990.0,0.07824]
[1739313365333,0.2083439,96000.0,95986.0,0.0782]
[1739313365532,0.3608,96004.0,95990.0,0.00015624]
[1739313365733,0.2083634,95991.0,95990.0,0.00015624]
[1739313367532,0.2084155,95967.0,95966.0,0.07884]
[1739313367731,0.3608,95972.0,95963.0,0.079]
[1739313367933,0.2084186,95966.0,95963.0,0.079]
[1739313368532,0.3608,95964.0,95955.0,0.00015624]
[1739313368840,0.5692394,95956.0,95955.0,0.00015624]
[1739313369734,0.2084586,95948.0,95941.0,0.07912]
[1739313369937,0.2084586,95948.0,95933.0,0.2084889]
[1739313370130,0.5692586,95948.0,95935.0,0.07908]
[1739313370329,0.5692586,95948.0,95933.0,0.2084889]
[1739313370533,0.5692586,95948.0,95929.0,0.07904]
[1739313370534,0.2084944,95931.0,95929.0,0.07904]
[1739313370730,0.2084944,95931.0,95924.0,0.2085085]
[1739313370927,0.2084944,95931.0,95921.0,0.079]
[1739313371130,0.2084944,95931.0,95925.0,0.208505]
[1739313371437,0.2085007,95928.0,95920.0,0.2085166]
[1739313371636,0.2085007,95928.0,95920.0,0.2875166]
[1739313371831,0.2084844,95936.0,95921.0,0.2085139]
[1739313372030,0.2084871,95935.0,95921.0,0.2085139]
[1739313372231,0.2084943,95931.0,95921.0,0.2085139]
[1739313372440,0.2084943,95931.0,95920.0,0.079]
[1739313372639,0.00015632,95937.0,95924.0,0.2085072]
[1739313372839,0.2084846,95936.0,95924.0,0.2085072]
[1739313373340,0.00015632,95937.0,95935.0,0.2084841]
[1739313373535,0.00015632,95937.0,95935.0,0.2872841]
[1739313374236,0.3608,95963.0,95936.0,0.3608]
[1739313374544,0.3608,95963.0,95950.0,0.3608]